[Event "Torneo Nuevo Centro. Jornada 8"]
[Site "Chess.com"]
[Date "2020.08.07"]
[Round "3"]
[White "Perez Garcia, Jose Miguel"]
[Black "Chofre Murcia, Adrián"]
[Result "1-0"]
[WhiteElo "2032"]
[BlackElo "1678"]
[TimeControl "180+2"]
[EndTime "10:58:01 PDT"]
[Termination "Victoria de PEREZOV69 por jaque mate"]

1. e4 {[%clk 0:03:01.9]} 1... e5 {[%clk 0:03:00.6]} 2. Nf3 {[%clk 0:03:02]} 2...
Nc6 {[%clk 0:03:01.1]} 3. Bc4 {[%clk 0:03:02.7]} 3... Bc5 {[%clk 0:03:00.5]} 4.
c3 {[%clk 0:02:59.5]} 4... Nf6 {[%clk 0:03:00.9]} 5. d4 {[%clk 0:03:00.2]} 5...
exd4 {[%clk 0:02:59.1]} 6. e5 {[%clk 0:03:01.3]} 6... Qe7 {[%clk 0:02:34]} 7.
cxd4 {[%clk 0:02:58.9]} 7... Bb4+ {[%clk 0:02:07.7]} 8. Nc3 {[%clk 0:02:52.6]}
8... d5 {[%clk 0:01:46.5]} 9. Bb5 {[%clk 0:02:42.1]} 9... Bg4 {[%clk 0:01:34]}
10. O-O {[%clk 0:02:41.7]} 10... Bxf3 {[%clk 0:01:19.3]} 11. Qxf3 {[%clk
0:02:38.3]} 11... Nd7 {[%clk 0:00:49.9]} 12. Nxd5 {[%clk 0:02:33.4]} 12... Qd8
{[%clk 0:00:34.1]} 13. Bxc6 {[%clk 0:02:30]} 13... bxc6 {[%clk 0:00:33.8]} 14.
Nxb4 {[%clk 0:02:29.8]} 14... O-O {[%clk 0:00:32.5]} 15. Nxc6 {[%clk 0:02:26]}
15... Qe8 {[%clk 0:00:30.3]} 16. Bg5 {[%clk 0:02:23.6]} 16... Nb6 {[%clk
0:00:22]} 17. Be7 {[%clk 0:02:20.4]} 17... Qd7 {[%clk 0:00:18.5]} 18. Bxf8
{[%clk 0:02:20.2]} 18... Kxf8 {[%clk 0:00:19.7]} 19. Rac1 {[%clk 0:02:15]} 19...
Re8 {[%clk 0:00:16.4]} 20. Rfd1 {[%clk 0:02:13.3]} 20... Na4 {[%clk 0:00:13.6]}
21. b3 {[%clk 0:02:10]} 21... Nb2 {[%clk 0:00:13.7]} 22. Rd2 {[%clk 0:02:09.4]}
22... Na4 {[%clk 0:00:12.9]} 23. bxa4 {[%clk 0:02:08.4]} 23... Re6 {[%clk
0:00:04.2]} 24. d5 {[%clk 0:02:06.5]} 24... Re8 {[%clk 0:00:03.1]} 25. e6 {[%clk
0:02:06.1]} 25... Qd6 {[%clk 0:00:03.4]} 26. Qxf7# {[%clk 0:02:06.6]} 1

[Event "Torneo Nuevo Centro. Jornada 8"]
[Site "Chess.com"]
[Date "2020.08.07"]
[Round "3"]
[White "Gimenez Saiz, Jose Raul"]
[Black "Alegre Romaguera, Francesc"]
[Result "1-0"]
[WhiteElo "1724"]
[BlackElo "1348"]
[TimeControl "180+2"]
[EndTime "10:59:32 PDT"]
[Termination "Victoria de rango013 por jaque mate"]

1. d4 {[%clk 0:03:01.9]} 1... e5 {[%clk 0:02:53.2]} 2. dxe5 {[%clk 0:02:59.7]}
2... Nc6 {[%clk 0:02:52.9]} 3. Nf3 {[%clk 0:02:59.7]} 3... Qe7 {[%clk
0:02:53.1]} 4. Bf4 {[%clk 0:02:55.1]} 4... Qb4+ {[%clk 0:02:53.2]} 5. Bd2 {[%clk
0:02:46.5]} 5... Qxb2 {[%clk 0:02:52.4]} 6. Nc3 {[%clk 0:02:46.2]} 6... Nb4
{[%clk 0:02:25.2]} 7. Nd4 {[%clk 0:02:27.6]} 7... Bc5 {[%clk 0:02:10.3]} 8. Rb1
{[%clk 0:02:24.2]} 8... Qa3 {[%clk 0:02:07.9]} 9. Ndb5 {[%clk 0:01:47.2]} 9...
Qa5 {[%clk 0:02:05.7]} 10. Nd5 {[%clk 0:01:38.3]} 10... Bb6 {[%clk 0:01:00.7]}
11. Rxb4 {[%clk 0:01:22.1]} 11... Kd8 {[%clk 0:00:27.1]} 12. Rb2 {[%clk
0:00:37.9]} 12... Qa4 {[%clk 0:00:19.3]} 13. e3 {[%clk 0:00:29.2]} 13... c6
{[%clk 0:00:18.3]} 14. Ndc3 {[%clk 0:00:25.1]} 14... Qh4 {[%clk 0:00:16.9]} 15.
Nd6 {[%clk 0:00:24.8]} 15... Qh5 {[%clk 0:00:15.2]} 16. Qxh5 {[%clk 0:00:21.2]}
16... Nh6 {[%clk 0:00:07.2]} 17. e4 {[%clk 0:00:14.6]} 17... Ke7 {[%clk
0:00:05.7]} 18. Bxh6 {[%clk 0:00:14.6]} 18... gxh6 {[%clk 0:00:06]} 19. Qxh6
{[%clk 0:00:15.9]} 19... Ba5 {[%clk 0:00:06.9]} 20. Qf6+ {[%clk 0:00:16.5]}
20... Kf8 {[%clk 0:00:06.9]} 21. Qxh8+ {[%clk 0:00:17.9]} 21... Ke7 {[%clk
0:00:07.4]} 22. Qf6+ {[%clk 0:00:19.8]} 22... Kf8 {[%clk 0:00:08.3]} 23. Qxf7#
{[%clk 0:00:19.4]} 1

[Event "Torneo Nuevo Centro. Jornada 8"]
[Site "Chess.com"]
[Date "2020.08.07"]
[Round "3"]
[White "Beneyto de Ramon, Guillermo"]
[Black "Pedros Viudes, Santiago"]
[Result "0-1"]
[WhiteElo "1650"]
[BlackElo "1902"]
[TimeControl "180+2"]
[EndTime "10:59:36 PDT"]
[Termination "Victoria de ElGatoKamsky por abandono"]

1. c4 {[%clk 0:03:01.5]} 1... e6 {[%clk 0:03:00]} 2. Nc3 {[%clk 0:03:01.5]} 2...
d5 {[%clk 0:03:01.9]} 3. cxd5 {[%clk 0:03:03.4]} 3... exd5 {[%clk 0:03:02.7]} 4.
d4 {[%clk 0:03:05.1]} 4... Nf6 {[%clk 0:03:03.9]} 5. g3 {[%clk 0:03:06.8]} 5...
c6 {[%clk 0:03:05]} 6. Bg2 {[%clk 0:03:08.2]} 6... Bd6 {[%clk 0:03:06.5]} 7. Bg5
{[%clk 0:03:08.7]} 7... Nbd7 {[%clk 0:03:05.8]} 8. Nf3 {[%clk 0:03:09.6]} 8...
h6 {[%clk 0:03:07.3]} 9. Bxf6 {[%clk 0:03:09.9]} 9... Nxf6 {[%clk 0:03:02.3]}
10. Rg1 {[%clk 0:03:10.8]} 10... O-O {[%clk 0:02:57.8]} 11. Kf1 {[%clk
0:03:11.4]} 11... Re8 {[%clk 0:02:50.4]} 12. e3 {[%clk 0:03:11.8]} 12... Be6
{[%clk 0:02:41.4]} 13. Rh1 {[%clk 0:03:12.6]} 13... Qd7 {[%clk 0:02:38.9]} 14.
Kg1 {[%clk 0:03:13.4]} 14... Bg4 {[%clk 0:02:34.7]} 15. h3 {[%clk 0:03:12.8]}
15... Bh5 {[%clk 0:02:35.9]} 16. Ne2 {[%clk 0:03:07.8]} 16... Ne4 {[%clk
0:02:34.3]} 17. Nf4 {[%clk 0:03:03.4]} 17... Bxf4 {[%clk 0:02:28.8]} 18. exf4
{[%clk 0:03:05.3]} 18... f6 {[%clk 0:02:23.6]} 19. g4 {[%clk 0:03:02]} 19... Bf7
{[%clk 0:02:23.2]} 20. f5 {[%clk 0:02:59.9]} 20... Qd6 {[%clk 0:02:19.3]} 21.
Nd2 {[%clk 0:02:59.7]} 21... Nxd2 {[%clk 0:02:16]} 22. Qxd2 {[%clk 0:03:00.4]}
22... Re7 {[%clk 0:02:16]} 23. f4 {[%clk 0:02:58.5]} 23... Rae8 {[%clk
0:02:16.4]} 24. Kh2 {[%clk 0:02:47.4]} 24... Re2 {[%clk 0:02:14.8]} 25. Qc1
{[%clk 0:02:45.3]} 25... Qb4 {[%clk 0:02:00.2]} 26. Qc3 {[%clk 0:02:34.1]} 26...
Qxb2 {[%clk 0:01:51.8]} 27. Qxb2 {[%clk 0:02:31.6]} 27... Rxb2 {[%clk
0:01:53.7]} 28. Rab1 {[%clk 0:02:28.1]} 28... Ree2 {[%clk 0:01:53.1]} 29. Rhg1
{[%clk 0:02:27.5]} 29... Kf8 {[%clk 0:01:38.2]} 30. Kg3 {[%clk 0:02:27.8]} 30...
Ke7 {[%clk 0:01:38.8]} 31. Bf3 {[%clk 0:02:28.5]} 31... Red2 {[%clk 0:01:32.4]}
32. Rgd1 {[%clk 0:02:20.2]} 32... Rxb1 {[%clk 0:01:27.1]} 33. Rxb1 {[%clk
0:02:16.3]} 33... b6 {[%clk 0:01:26.8]} 34. Rc1 {[%clk 0:02:12.1]} 34... Kd6
{[%clk 0:01:25.6]} 35. Rc3 {[%clk 0:02:03.6]} 35... Rxa2 {[%clk 0:01:21.6]} 36.
h4 {[%clk 0:01:58.5]} 36... Rd2 {[%clk 0:01:20.3]} 37. Ra3 {[%clk 0:01:57.7]}
37... a5 {[%clk 0:01:21.3]} 38. Ra4 {[%clk 0:01:58]} 38... Be8 {[%clk 0:01:19]}
39. g5 {[%clk 0:01:54.6]} 39... Rd3 {[%clk 0:01:14.1]} 40. g6 {[%clk 0:01:48.7]}
40... c5 {[%clk 0:01:08]} 41. dxc5+ {[%clk 0:01:48.9]} 41... Kxc5 {[%clk
0:01:09.9]} 42. Ra2 {[%clk 0:01:47.7]} 42... d4 {[%clk 0:01:08.2]} 43. Kg4
{[%clk 0:01:48.5]} 43... a4 {[%clk 0:01:02.7]} 44. h5 {[%clk 0:01:44.5]} 44...
a3 {[%clk 0:01:00.3]} 45. Kg3 {[%clk 0:01:39.2]} 45... Bc6 {[%clk 0:01:00.4]}
46. Rf2 {[%clk 0:01:36.9]} 46... Rxf3+ {[%clk 0:00:58.5]} 47. Rxf3 {[%clk
0:01:37.1]} 47... Bxf3 {[%clk 0:01:00.4]} 48. Kxf3 {[%clk 0:01:39]} 48... a2
{[%clk 0:01:02.3]} 0

[Event "Torneo Nuevo Centro. Jornada 8"]
[Site "Chess.com"]
[Date "2020.08.07"]
[Round "3"]
[White "Lloret Ramis, Juan José"]
[Black "Sos Andreu, Eric"]
[Result "0-1"]
[WhiteElo "1993"]
[BlackElo "2546"]
[TimeControl "180+2"]
[EndTime "10:59:48 PDT"]
[Termination "Victoria de ericovski por tiempo"]

1. c4 {[%clk 0:03:01.9]} 1... c5 {[%clk 0:03:00.3]} 2. Nc3 {[%clk 0:03:02.2]}
2... b6 {[%clk 0:03:01.4]} 3. Nf3 {[%clk 0:03:01.8]} 3... Bb7 {[%clk 0:03:02.5]}
4. g3 {[%clk 0:03:02.8]} 4... Nf6 {[%clk 0:03:01.2]} 5. Bg2 {[%clk 0:03:03.6]}
5... e6 {[%clk 0:03:02.8]} 6. O-O {[%clk 0:03:04]} 6... Be7 {[%clk 0:03:04.1]}
7. d4 {[%clk 0:03:03]} 7... cxd4 {[%clk 0:03:05.6]} 8. Qxd4 {[%clk 0:03:00.7]}
8... O-O {[%clk 0:03:06]} 9. Rd1 {[%clk 0:02:52.7]} 9... d6 {[%clk 0:03:07.2]}
10. Bg5 {[%clk 0:02:52.7]} 10... Nbd7 {[%clk 0:03:07.9]} 11. Nb5 {[%clk
0:02:44.7]} 11... d5 {[%clk 0:02:55.5]} 12. cxd5 {[%clk 0:02:30.8]} 12... exd5
{[%clk 0:02:48.1]} 13. Bf4 {[%clk 0:02:04.2]} 13... Nc5 {[%clk 0:02:45.4]} 14.
Ne5 {[%clk 0:01:27.7]} 14... Ne6 {[%clk 0:02:46.1]} 15. Qd2 {[%clk 0:01:27.3]}
15... a6 {[%clk 0:02:41.5]} 16. Nd4 {[%clk 0:01:22.2]} 16... Nxf4 {[%clk
0:02:36.2]} 17. Qxf4 {[%clk 0:01:15.3]} 17... Bd6 {[%clk 0:02:37.2]} 18. Nf5
{[%clk 0:01:04.6]} 18... Bxe5 {[%clk 0:02:14.9]} 19. Qxe5 {[%clk 0:01:04.8]}
19... Re8 {[%clk 0:02:16.3]} 20. Qf4 {[%clk 0:00:51.5]} 20... Rxe2 {[%clk
0:02:16.4]} 21. Qg5 {[%clk 0:00:46.1]} 21... g6 {[%clk 0:02:15.8]} 22. Nh6+
{[%clk 0:00:44.9]} 22... Kg7 {[%clk 0:02:13.4]} 23. Nf5+ {[%clk 0:00:39.3]}
23... Kh8 {[%clk 0:02:12]} 24. Nh6 {[%clk 0:00:35.7]} 24... Qe7 {[%clk
0:02:05.5]} 25. Rac1 {[%clk 0:00:23.4]} 25... Ne8 {[%clk 0:01:09.4]} 26. Qg4
{[%clk 0:00:10.1]} 26... Rd8 {[%clk 0:01:05.1]} 27. Bf3 {[%clk 0:00:09.4]} 27...
Re6 {[%clk 0:00:59]} 28. Qf4 {[%clk 0:00:07.3]} 28... Kg7 {[%clk 0:00:56.4]} 29.
Ng4 {[%clk 0:00:04]} 29... h5 {[%clk 0:00:50.8]} 30. Qh6+ {[%clk 0:00:03.4]}
30... Kg8 {[%clk 0:00:51.7]} 31. Ne3 {[%clk 0:00:04.5]} 31... d4 {[%clk
0:00:45]} 0

[Event "Torneo Nuevo Centro. Jornada 8"]
[Site "Chess.com"]
[Date "2020.08.07"]
[Round "3"]
[White "Fente Fernandez, Jose Ignacio"]
[Black "Perrot, Fabien "]
[Result "1-0"]
[WhiteElo "1463"]
[BlackElo "1017"]
[TimeControl "180+2"]
[EndTime "10:59:58 PDT"]
[Termination "Victoria de SrFente por jaque mate"]

1. e4 {[%clk 0:02:58.7]} 1... e5 {[%clk 0:02:56.6]} 2. Nf3 {[%clk 0:02:58.3]}
2... Nc6 {[%clk 0:02:57.3]} 3. Bc4 {[%clk 0:02:58.9]} 3... Bc5 {[%clk
0:02:56.7]} 4. c3 {[%clk 0:02:59.6]} 4... Nf6 {[%clk 0:02:56.6]} 5. d4 {[%clk
0:03:00.5]} 5... exd4 {[%clk 0:02:56.6]} 6. cxd4 {[%clk 0:03:02.4]} 6... Bb6
{[%clk 0:02:58.1]} 7. Nc3 {[%clk 0:03:00.5]} 7... d6 {[%clk 0:02:58.1]} 8. O-O
{[%clk 0:02:54.7]} 8... Bg4 {[%clk 0:02:58.4]} 9. d5 {[%clk 0:02:32.3]} 9... Nd4
{[%clk 0:02:53.9]} 10. Be2 {[%clk 0:02:18.2]} 10... Nxe2+ {[%clk 0:02:44.5]} 11.
Qxe2 {[%clk 0:02:17.4]} 11... O-O {[%clk 0:02:44.6]} 12. h3 {[%clk 0:02:17]}
12... Bh5 {[%clk 0:02:42.7]} 13. g4 {[%clk 0:02:16.1]} 13... Bg6 {[%clk
0:02:43.4]} 14. Re1 {[%clk 0:02:06.7]} 14... Re8 {[%clk 0:02:41.6]} 15. Qc4
{[%clk 0:02:04.9]} 15... a6 {[%clk 0:02:33.4]} 16. Nh4 {[%clk 0:01:44.1]} 16...
Qe7 {[%clk 0:02:01.2]} 17. Nxg6 {[%clk 0:01:24.6]} 17... hxg6 {[%clk 0:02:03.1]}
18. Kg2 {[%clk 0:01:22.1]} 18... Ba7 {[%clk 0:01:45.3]} 19. a4 {[%clk
0:01:19.3]} 19... Qe5 {[%clk 0:01:34]} 20. Be3 {[%clk 0:01:01.4]} 20... Nxe4
{[%clk 0:01:23.9]} 21. Bxa7 {[%clk 0:00:48.8]} 21... Rxa7 {[%clk 0:01:22]} 22.
Rxe4 {[%clk 0:00:47.2]} 22... Qxe4+ {[%clk 0:01:09.9]} 23. Nxe4 {[%clk
0:00:47.7]} 23... Re7 {[%clk 0:01:01.4]} 24. f3 {[%clk 0:00:47]} 24... Ra8
{[%clk 0:01:02.1]} 25. b4 {[%clk 0:00:45.2]} 25... Rae8 {[%clk 0:01:03.3]} 26.
b5 {[%clk 0:00:42.1]} 26... f5 {[%clk 0:01:01.1]} 27. Nc3 {[%clk 0:00:18.3]}
27... fxg4 {[%clk 0:01:01.4]} 28. Qxg4 {[%clk 0:00:16.6]} 28... Re3 {[%clk
0:00:55.8]} 29. Ne4 {[%clk 0:00:16.4]} 29... Re2+ {[%clk 0:00:46.9]} 30. Kg3
{[%clk 0:00:13.8]} 30... Rf8 {[%clk 0:00:44]} 31. Qxg6 {[%clk 0:00:13.6]} 31...
Re3 {[%clk 0:00:40.6]} 32. Rf1 {[%clk 0:00:14.2]} 32... Ra3 {[%clk 0:00:38.9]}
33. Ng5 {[%clk 0:00:14.7]} 33... Rxa4 {[%clk 0:00:35.2]} 34. Qh7# {[%clk
0:00:15.5]} 1

[Event "Torneo Nuevo Centro. Jornada 8"]
[Site "Chess.com"]
[Date "2020.08.07"]
[Round "3"]
[White "Luque Saiz, Andrés"]
[Black "Zamora Soler, Raul"]
[Result "1-0"]
[WhiteElo "2005"]
[BlackElo "1876"]
[TimeControl "180+2"]
[EndTime "11:00:09 PDT"]
[Termination "Victoria de Chuch1n por abandono"]

1. e4 {[%clk 0:03:01.9]} 1... c5 {[%clk 0:02:59.9]} 2. Nf3 {[%clk 0:03:03]} 2...
Nc6 {[%clk 0:03:01]} 3. Bb5 {[%clk 0:03:03.9]} 3... d6 {[%clk 0:03:01.2]} 4.
Bxc6+ {[%clk 0:03:04.6]} 4... bxc6 {[%clk 0:03:02.1]} 5. O-O {[%clk 0:03:02.4]}
5... e6 {[%clk 0:02:59.6]} 6. d3 {[%clk 0:03:01.4]} 6... Be7 {[%clk 0:03:00.5]}
7. e5 {[%clk 0:02:55.1]} 7... d5 {[%clk 0:03:00.6]} 8. c4 {[%clk 0:02:56.3]}
8... Bd7 {[%clk 0:02:53.8]} 9. Nc3 {[%clk 0:02:55.8]} 9... f5 {[%clk 0:02:40.5]}
10. exf6 {[%clk 0:02:45.3]} 10... Bxf6 {[%clk 0:02:40]} 11. Re1 {[%clk
0:02:39.9]} 11... Ne7 {[%clk 0:02:40.9]} 12. Ne5 {[%clk 0:02:34.9]} 12... O-O
{[%clk 0:02:34.7]} 13. Na4 {[%clk 0:01:59.9]} 13... Bxe5 {[%clk 0:02:24.8]} 14.
Rxe5 {[%clk 0:02:01.8]} 14... Ng6 {[%clk 0:02:25.6]} 15. Re1 {[%clk 0:01:55.5]}
15... d4 {[%clk 0:01:50.3]} 16. Nxc5 {[%clk 0:01:45.8]} 16... e5 {[%clk
0:01:51.3]} 17. Ne4 {[%clk 0:01:29.9]} 17... Bf5 {[%clk 0:01:44.2]} 18. Bg5
{[%clk 0:01:20.6]} 18... Qb6 {[%clk 0:01:40.7]} 19. b3 {[%clk 0:01:18.3]} 19...
Bxe4 {[%clk 0:01:39]} 20. Rxe4 {[%clk 0:01:20.2]} 20... Rf5 {[%clk 0:01:38.3]}
21. Bd2 {[%clk 0:00:56.4]} 21... Raf8 {[%clk 0:01:38]} 22. f3 {[%clk 0:00:56.4]}
22... c5 {[%clk 0:01:30.7]} 23. Qe1 {[%clk 0:00:52.3]} 23... Qf6 {[%clk
0:01:22.1]} 24. b4 {[%clk 0:00:47.4]} 24... cxb4 {[%clk 0:01:17.8]} 25. Bxb4
{[%clk 0:00:49.3]} 25... Rf7 {[%clk 0:01:17.7]} 26. Bd2 {[%clk 0:00:44.4]} 26...
Nh4 {[%clk 0:01:01.8]} 27. Qxh4 {[%clk 0:00:38.1]} 27... Qxh4 {[%clk 0:01:01.6]}
28. Rxh4 {[%clk 0:00:40]} 28... g5 {[%clk 0:01:00.7]} 29. Re4 {[%clk 0:00:37.9]}
29... h6 {[%clk 0:01:01.6]} 30. Rb1 {[%clk 0:00:37.7]} 30... Kg7 {[%clk
0:01:01.1]} 31. a4 {[%clk 0:00:37.8]} 31... Rc7 {[%clk 0:00:56.3]} 32. Rb5
{[%clk 0:00:37.4]} 32... Kf6 {[%clk 0:00:56.1]} 33. Kf2 {[%clk 0:00:29.2]} 33...
Rc6 {[%clk 0:00:51.5]} 34. g4 {[%clk 0:00:28.1]} 34... Rf4 {[%clk 0:00:50.5]}
35. Bxf4 {[%clk 0:00:28.4]} 35... exf4 {[%clk 0:00:49]} 36. Rxd4 {[%clk
0:00:28.7]} 36... Ra6 {[%clk 0:00:50.4]} 37. a5 {[%clk 0:00:29.3]} 37... Re6
{[%clk 0:00:48]} 38. Re4 {[%clk 0:00:30.1]} 38... Rd6 {[%clk 0:00:48.8]} 39. d4
{[%clk 0:00:31.2]} 39... Ra6 {[%clk 0:00:49.4]} 40. c5 {[%clk 0:00:29.9]} 40...
Rc6 {[%clk 0:00:45.9]} 41. d5 {[%clk 0:00:30.8]} 41... Rxc5 {[%clk 0:00:46.7]}
42. Rxc5 {[%clk 0:00:30.9]} 1

[Event "Torneo Nuevo Centro. Jornada 8"]
[Site "Chess.com"]
[Date "2020.08.07"]
[Round "3"]
[White "Gil López, Alejandro"]
[Black "Montesinos Diaz, Luis"]
[Result "1-0"]
[WhiteElo "2210"]
[BlackElo "1835"]
[TimeControl "180+2"]
[EndTime "11:00:37 PDT"]
[Termination "Victoria de AglVal0313 por abandono"]

1. e4 {[%clk 0:03:01.9]} 1... c6 {[%clk 0:03:00]} 2. d4 {[%clk 0:03:02.5]} 2...
d5 {[%clk 0:03:00.2]} 3. Nc3 {[%clk 0:03:04.1]} 3... dxe4 {[%clk 0:03:00.5]} 4.
Nxe4 {[%clk 0:03:06]} 4... Bf5 {[%clk 0:03:01.9]} 5. Ng3 {[%clk 0:03:06.6]} 5...
Bg6 {[%clk 0:03:03.1]} 6. h4 {[%clk 0:03:07]} 6... h6 {[%clk 0:03:03.8]} 7. Nf3
{[%clk 0:03:08.7]} 7... Nd7 {[%clk 0:03:04]} 8. h5 {[%clk 0:03:07.3]} 8... Bh7
{[%clk 0:03:04.9]} 9. Bd3 {[%clk 0:03:08.5]} 9... Bxd3 {[%clk 0:03:06.1]} 10.
Qxd3 {[%clk 0:03:10.4]} 10... Ngf6 {[%clk 0:03:05.7]} 11. Bf4 {[%clk 0:03:08.4]}
11... Qa5+ {[%clk 0:03:06]} 12. c3 {[%clk 0:03:06.3]} 12... e6 {[%clk
0:03:06.2]} 13. Ne5 {[%clk 0:02:57.5]} 13... Be7 {[%clk 0:02:46.9]} 14. Ne4
{[%clk 0:02:22.3]} 14... Nxe4 {[%clk 0:02:44.9]} 15. Qxe4 {[%clk 0:02:24.2]}
15... Nxe5 {[%clk 0:02:42.5]} 16. Bxe5 {[%clk 0:02:17.7]} 16... Bf6 {[%clk
0:02:41.8]} 17. Bxf6 {[%clk 0:02:08.8]} 17... gxf6 {[%clk 0:02:43.7]} 18. Qe2
{[%clk 0:02:04.3]} 18... Rg8 {[%clk 0:02:43]} 19. g3 {[%clk 0:02:01.8]} 19...
Qd5 {[%clk 0:02:42.7]} 20. Rh4 {[%clk 0:01:58.7]} 20... Rg5 {[%clk 0:02:38.1]}
21. a3 {[%clk 0:01:53.5]} 21... a5 {[%clk 0:02:34.4]} 22. O-O-O {[%clk
0:01:48.6]} 22... b5 {[%clk 0:02:18]} 23. Rg1 {[%clk 0:01:21.2]} 23... b4 {[%clk
0:02:04.4]} 24. c4 {[%clk 0:01:21.7]} 24... Qf5 {[%clk 0:01:48.5]} 25. Rf4
{[%clk 0:01:12]} 25... Qh3 {[%clk 0:01:34.7]} 26. Rxf6 {[%clk 0:01:00.5]} 26...
Qxh5 {[%clk 0:01:30.1]} 27. Qe4 {[%clk 0:01:00]} 27... Rc8 {[%clk 0:01:03.5]}
28. g4 {[%clk 0:00:58.5]} 28... Qh2 {[%clk 0:01:02]} 29. Rh1 {[%clk 0:00:54.5]}
29... Qd6 {[%clk 0:01:00]} 30. Rfxh6 {[%clk 0:00:52.9]} 30... bxa3 {[%clk
0:00:53.6]} 31. c5 {[%clk 0:00:53.8]} 31... axb2+ {[%clk 0:00:53.3]} 32. Kxb2
{[%clk 0:00:52]} 32... Qd5 {[%clk 0:00:48.2]} 33. Rh8+ {[%clk 0:00:41.6]} 33...
Kd7 {[%clk 0:00:48.9]} 34. Qf4 {[%clk 0:00:15.9]} 34... Rxh8 {[%clk 0:00:13.7]}
35. Qxf7+ {[%clk 0:00:13.6]} 35... Kc8 {[%clk 0:00:09.4]} 36. Rxh8+ {[%clk
0:00:14.2]} 36... Qd8 {[%clk 0:00:09.2]} 37. Rxd8+ {[%clk 0:00:15.5]} 37... Kxd8
{[%clk 0:00:11.1]} 38. Qf6+ {[%clk 0:00:16.2]} 1

[Event "Torneo Nuevo Centro. Jornada 8"]
[Site "Chess.com"]
[Date "2020.08.07"]
[Round "3"]
[White "Gutierrez Marco, Dario"]
[Black "Gukasov, Artem"]
[Result "0-1"]
[WhiteElo "1807"]
[BlackElo "1541"]
[TimeControl "180+2"]
[EndTime "11:00:45 PDT"]
[Termination "Victoria de ArtemGukasov por jaque mate"]

1. e4 {[%clk 0:03:01.9]} 1... e6 {[%clk 0:02:59.7]} 2. d4 {[%clk 0:03:03.2]}
2... d5 {[%clk 0:03:00.5]} 3. e5 {[%clk 0:03:04.6]} 3... c5 {[%clk 0:03:01]} 4.
c3 {[%clk 0:03:06.1]} 4... Nc6 {[%clk 0:02:59.2]} 5. a3 {[%clk 0:03:07.2]} 5...
Qb6 {[%clk 0:02:59]} 6. Nf3 {[%clk 0:03:07.8]} 6... c4 {[%clk 0:02:57.5]} 7. h4
{[%clk 0:03:08.3]} 7... Bd7 {[%clk 0:02:55.9]} 8. h5 {[%clk 0:03:07.9]} 8... h6
{[%clk 0:02:57.2]} 9. g3 {[%clk 0:03:08.7]} 9... Na5 {[%clk 0:02:52.5]} 10. Nbd2
{[%clk 0:03:08.8]} 10... Ne7 {[%clk 0:02:45.7]} 11. Bh3 {[%clk 0:03:08]} 11...
Nec6 {[%clk 0:02:45.7]} 12. O-O {[%clk 0:03:08.6]} 12... Be7 {[%clk 0:02:45.9]}
13. Re1 {[%clk 0:03:09.5]} 13... O-O-O {[%clk 0:02:45.1]} 14. Nh2 {[%clk
0:03:10.2]} 14... g6 {[%clk 0:02:26.3]} 15. hxg6 {[%clk 0:03:07.3]} 15... fxg6
{[%clk 0:02:27.5]} 16. Nhf1 {[%clk 0:03:07.7]} 16... g5 {[%clk 0:02:26.7]} 17.
Ne3 {[%clk 0:03:07.5]} 17... Rhf8 {[%clk 0:02:24.1]} 18. Rb1 {[%clk 0:02:58.9]}
18... Nb3 {[%clk 0:02:11.5]} 19. Nxb3 {[%clk 0:02:58.4]} 19... cxb3 {[%clk
0:02:13]} 20. Bd2 {[%clk 0:02:54.3]} 20... a5 {[%clk 0:02:00.4]} 21. Rc1 {[%clk
0:02:51.9]} 21... a4 {[%clk 0:02:00.2]} 22. Re2 {[%clk 0:02:19.3]} 22... Kb8
{[%clk 0:01:46.8]} 23. Be1 {[%clk 0:02:14.5]} 23... Na5 {[%clk 0:01:41.6]} 24.
c4 {[%clk 0:01:48]} 24... dxc4 {[%clk 0:01:33.1]} 25. Bxa5 {[%clk 0:01:47]}
25... Qxa5 {[%clk 0:01:21.9]} 26. Nxc4 {[%clk 0:01:48.1]} 26... Qd5 {[%clk
0:01:22.6]} 27. Bg2 {[%clk 0:01:46.6]} 27... Qb5 {[%clk 0:01:19.6]} 28. Rd2
{[%clk 0:01:32.1]} 28... Bc6 {[%clk 0:01:16.9]} 29. Bh3 {[%clk 0:01:31.2]} 29...
Qd5 {[%clk 0:01:13]} 30. f3 {[%clk 0:01:02.3]} 30... Rxf3 {[%clk 0:01:01.1]} 31.
Bg2 {[%clk 0:01:01.3]} 31... Rxg3 {[%clk 0:00:59.4]} 32. Qf1 {[%clk 0:01:00.2]}
32... Qd7 {[%clk 0:00:50.4]} 33. Nb6 {[%clk 0:00:45.5]} 33... Qe8 {[%clk
0:00:36.2]} 34. Kh2 {[%clk 0:00:34.8]} 34... Rg4 {[%clk 0:00:33.2]} 35. Bxc6
{[%clk 0:00:30.7]} 35... bxc6 {[%clk 0:00:26.6]} 36. Rc3 {[%clk 0:00:19.5]}
36... Rdxd4 {[%clk 0:00:19.3]} 37. Qa6 {[%clk 0:00:18.8]} 37... Rxd2+ {[%clk
0:00:10.5]} 38. Kh3 {[%clk 0:00:20]} 38... Qh5# {[%clk 0:00:09.5]} 0